[Event "NJSK 2026 Meisjes B"]
[Site "Helmond, Netherlands"]
[Date "2026.04.30"]
[Round "6.4"]
[White "Omnes, Zoe"]
[Black "Hardeman, Imara"]
[Result "0-1"]
[TimeControl "90min/40moves + 30min + 30sec/move"]
[WhiteTitle "-"]
[BlackTitle "-"]
[WhiteFideId "1095200"]
[BlackFideId "40100596"]
[WhiteElo "1485"]
[BlackElo "1718"]

1. e4 {[%clk 01:30:51]} {[%emt 00:00:08]} c6 {[%clk 01:30:56]} {[%emt
00:00:05]} 2. d4 {[%clk 01:31:11]} {[%emt 00:00:10]} d5 {[%clk 01:31:21]}
{[%emt 00:00:06]} 3. exd5 {[%clk 01:31:32]} {[%emt 00:00:10]} cxd5 {[%clk
01:31:47]} {[%emt 00:00:06]} 4. Bd3 {[%clk 01:31:47]} {[%emt 00:00:12]} Nc6
{[%clk 01:32:10]} {[%emt 00:00:06]} 5. c3 {[%clk 01:32:06]} {[%emt 00:00:11]}
Qc7 {[%clk 01:32:33]} {[%emt 00:00:07]} 6. Nf3 {[%clk 01:32:11]} {[%emt
00:00:25]} Bg4 {[%clk 01:32:52]} {[%emt 00:00:11]} 7. Be3 {[%clk 01:31:03]}
{[%emt 00:01:37]} e6 {[%clk 01:32:20]} {[%emt 00:01:03]} 8. Nbd2 {[%clk
01:30:34]} {[%emt 00:00:59]} Bd6 {[%clk 01:32:01]} {[%emt 00:00:49]} 9. Qc2
{[%clk 01:29:37]} {[%emt 00:01:27]} Nge7 {[%clk 01:26:46]} {[%emt 00:05:46]} 10.
h3 {[%clk 01:27:12]} {[%emt 00:02:55]} Bf5 {[%clk 01:26:39]} {[%emt 00:00:36]}
11. Nh4 {[%clk 01:20:36]} {[%emt 00:07:02]} Bxd3 {[%clk 01:24:53]} {[%emt
00:02:19]} 12. Qxd3 {[%clk 01:20:27]} {[%emt 00:00:39]} f6 {[%clk 01:22:23]}
{[%emt 00:03:00]} 13. Nhf3 {[%clk 01:16:59]} {[%emt 00:03:57]} h6 {[%clk
01:16:24]} {[%emt 00:06:29]} 14. h4 {[%clk 01:15:30]} {[%emt 00:01:58]} e5
{[%clk 01:14:44]} {[%emt 00:02:11]} 15. dxe5 {[%clk 01:12:44]} {[%emt
00:03:16]} fxe5 {[%clk 01:13:58]} {[%emt 00:01:16]} 16. Qe2 {[%clk 01:08:27]}
{[%emt 00:04:46]} O-O-O {[%clk 00:59:19]} {[%emt 00:15:10]} 17. Nb3 {[%clk
01:02:14]} {[%emt 00:06:43]} Nf5 {[%clk 00:49:58]} {[%emt 00:09:51]} 18. Bc5
{[%clk 00:58:11]} {[%emt 00:04:33]} Rhe8 {[%clk 00:40:02]} {[%emt 00:10:26]} 19.
Bxd6 {[%clk 00:56:56]} {[%emt 00:01:44]} Qxd6 {[%clk 00:39:09]} {[%emt
00:01:23]} 20. O-O-O {[%clk 00:56:37]} {[%emt 00:00:49]} e4 {[%clk 00:32:55]}
{[%emt 00:06:45]} 21. Nfd4 {[%clk 00:53:22]} {[%emt 00:03:44]} Ncxd4 {[%clk
00:32:19]} {[%emt 00:01:07]} 22. Nxd4 {[%clk 00:53:26]} {[%emt 00:00:25]} Qf4+
{[%clk 00:32:04]} {[%emt 00:00:45]} 23. Qd2 {[%clk 00:51:48]} {[%emt 00:02:02]}
Nxd4 {[%clk 00:30:18]} {[%emt 00:02:22]} 24. cxd4 {[%clk 00:52:05]} {[%emt
00:00:14]} Rf8 {[%clk 00:30:05]} {[%emt 00:00:43]} 25. Qxf4 {[%clk 00:51:53]}
{[%emt 00:00:41]} Rxf4 {[%clk 00:30:29]} {[%emt 00:00:06]} 26. Rdf1 {[%clk
00:51:30]} {[%emt 00:00:52]} Rdf8 {[%clk 00:30:39]} {[%emt 00:00:21]} 27. f3
{[%clk 00:50:57]} {[%emt 00:01:03]} exf3 {[%clk 00:30:40]} {[%emt 00:00:30]} 28.
gxf3 {[%clk 00:51:06]} {[%emt 00:00:21]} Rxd4 {[%clk 00:29:16]} {[%emt
00:01:54]} 29. Rhg1 {[%clk 00:46:23]} {[%emt 00:05:12]} Rf7 {[%clk 00:28:58]}
{[%emt 00:00:48]} 30. h5 {[%clk 00:45:03]} {[%emt 00:01:50]} Rh4 {[%clk
00:29:10]} {[%emt 00:00:19]} 31. Rh1 {[%clk 00:44:54]} {[%emt 00:00:38]} Rxh1
{[%clk 00:29:16]} {[%emt 00:00:24]} 32. Rxh1 {[%clk 00:44:31]} {[%emt
00:00:53]} Rxf3 {[%clk 00:29:42]} {[%emt 00:00:05]} 33. Rg1 {[%clk 00:44:25]}
{[%emt 00:00:35]} Rf7 {[%clk 00:30:05]} {[%emt 00:00:08]} 34. Re1 {[%clk
00:43:48]} {[%emt 00:00:52]} Kd7 {[%clk 00:30:26]} {[%emt 00:00:23]} 35. Rg1
{[%clk 00:43:29]} {[%emt 00:00:49]} Re7 {[%clk 00:28:40]} {[%emt 00:02:17]} 36.
Kd2 {[%clk 00:43:06]} {[%emt 00:00:52]} Kc6 {[%clk 00:27:02]} {[%emt 00:02:09]}
37. Kd3 {[%clk 00:41:40]} {[%emt 00:01:54]} Kd6 {[%clk 00:21:24]} {[%emt
00:06:10]} 38. Rg6+ {[%clk 00:40:04]} {[%emt 00:02:06]} Ke5 {[%clk 00:21:45]}
{[%emt 00:00:08]} 39. Ke3 {[%clk 00:37:56]} {[%emt 00:02:37]} Re6 {[%clk
00:19:01]} {[%emt 00:03:16]} 40. Rg2 {[%clk 00:37:00]} {[%emt 00:01:05]} Kd6+
{[%clk 00:13:52]} {[%emt 00:06:00]} 41. Kd3 {[%clk 00:34:52]} {[%emt 00:02:38]}
Re7 {[%clk 00:10:24]} {[%emt 00:03:58]} 42. b4 {[%clk 00:33:41]} {[%emt
00:01:41]} Kc6 {[%clk 00:09:35]} {[%emt 00:01:18]} 43. a4 {[%clk 00:33:15]}
{[%emt 00:00:56]} a6 {[%clk 00:08:06]} {[%emt 00:02:00]} 44. Rg6+ {[%clk
00:33:22]} {[%emt 00:00:22]} Kc7 {[%clk 00:08:21]} {[%emt 00:00:15]} 45. b5
{[%clk 00:33:24]} {[%emt 00:00:28]} axb5 {[%clk 00:05:44]} {[%emt 00:03:08]} 46.
axb5 {[%clk 00:33:44]} {[%emt 00:00:10]} Kd8 {[%clk 00:03:02]} {[%emt
00:03:11]} 47. Kd4 {[%clk 00:33:28]} {[%emt 00:00:47]} Ke8 {[%clk 00:01:56]}
{[%emt 00:01:36]} 48. Kxd5 {[%clk 00:33:35]} {[%emt 00:00:23]} Kf7 {[%clk
00:02:00]} {[%emt 00:00:24]} 49. Rb6 {[%clk 00:30:40]} {[%emt 00:03:18]} Rc7
{[%clk 00:30:21]} {[%emt 00:02:16]} 50. Rg6 {[%clk 00:57:10]} {[%emt 00:03:57]}
Rc1 {[%clk 00:24:44]} {[%emt 00:06:11]} 51. Rb6 {[%clk 00:56:14]} {[%emt
00:01:26]} Rd1+ {[%clk 00:23:43]} {[%emt 00:01:30]} 52. Ke5 {[%clk 00:56:27]}
{[%emt 00:00:17]} Rd7 {[%clk 00:23:04]} {[%emt 00:01:08]} 53. Rd6 {[%clk
00:50:46]} {[%emt 00:06:12]} Rc7 {[%clk 00:19:21]} {[%emt 00:04:14]} 54. Rd5
{[%clk 00:48:35]} {[%emt 00:02:42]} g6 {[%clk 00:15:01]} {[%emt 00:04:49]} 55.
b6 {[%clk 00:38:03]} {[%emt 00:11:02]} Re7+ {[%clk 00:15:00]} {[%emt 00:00:30]}
56. Kf4 {[%clk 00:37:36]} {[%emt 00:00:56]} gxh5 {[%clk 00:14:13]} {[%emt
00:01:18]} 57. Rxh5 {[%clk 00:37:40]} {[%emt 00:00:26]} Re6 {[%clk 00:14:20]}
{[%emt 00:00:23]} 58. Rb5 {[%clk 00:36:44]} {[%emt 00:01:27]} Ke7 {[%clk
00:14:25]} {[%emt 00:00:24]} 59. Kf5 {[%clk 00:34:13]} {[%emt 00:02:59]} Rf6+
{[%clk 00:12:58]} {[%emt 00:01:59]} 60. Ke4 {[%clk 00:33:01]} {[%emt 00:01:29]}
Kd7 {[%clk 00:12:35]} {[%emt 00:01:06]} 61. Ke5 {[%clk 00:30:18]} {[%emt
00:03:05]} Rg6 {[%clk 00:12:35]} {[%emt 00:00:37]} 62. Kf4 {[%clk 00:28:52]}
{[%emt 00:01:52]} Kc6 {[%clk 00:12:34]} {[%emt 00:00:34]} 63. Rb2 {[%clk
00:26:35]} {[%emt 00:02:47]} Kc5 {[%clk 00:12:13]} {[%emt 00:00:53]} 64. Ke5
{[%clk 00:24:14]} {[%emt 00:02:50]} Rg5 {[%clk 00:10:38]} {[%emt 00:02:05]} 65.
Kf6 {[%clk 00:24:22]} {[%emt 00:00:22]} Rd5 {[%clk 00:10:23]} {[%emt 00:00:44]}
66. Rh2 {[%clk 00:22:15]} {[%emt 00:02:34]} Kxb6 {[%clk 00:10:03]} {[%emt
00:00:54]} 67. Ke7 {[%clk 00:22:16]} {[%emt 00:00:29]} h5 {[%clk 00:10:19]}
{[%emt 00:00:14]} 68. Ke6 {[%clk 00:22:12]} {[%emt 00:00:34]} Kc6 {[%clk
00:09:57]} {[%emt 00:00:52]} 69. Rc2+ {[%clk 00:22:22]} {[%emt 00:00:20]} Rc5
{[%clk 00:10:20]} {[%emt 00:00:07]} 70. Rd2 {[%clk 00:22:13]} {[%emt 00:00:39]}
b6 {[%clk 00:08:30]} {[%emt 00:02:21]} 71. Rd8 {[%clk 00:21:54]} {[%emt
00:00:48]} Kb5 {[%clk 00:08:49]} {[%emt 00:00:11]} 72. Rd1 {[%clk 00:21:45]}
{[%emt 00:00:36]} h4 {[%clk 00:06:05]} {[%emt 00:03:17]} 73. Rd4 {[%clk
00:20:51]} {[%emt 00:01:24]} Rh5 {[%clk 00:06:19]} {[%emt 00:00:15]} 74. Rd2
{[%clk 00:20:49]} {[%emt 00:00:30]} h3 {[%clk 00:06:37]} {[%emt 00:00:15]} 75.
Rh2 {[%clk 00:21:06]} {[%emt 00:00:12]} Kc4 {[%clk 00:06:28]} {[%emt 00:00:37]}
76. Kf6 {[%clk 00:20:42]} {[%emt 00:00:56]} b5 {[%clk 00:05:48]} {[%emt
00:01:10]} 77. Kg6 {[%clk 00:20:52]} {[%emt 00:00:22]} Rh4 {[%clk 00:05:51]}
{[%emt 00:00:26]} 78. Kg5 {[%clk 00:21:08]} {[%emt 00:00:14]} Rh8 {[%clk
00:06:15]} {[%emt 00:00:05]} 79. Kf4 {[%clk 00:21:30]} {[%emt 00:00:08]} Kc3
{[%clk 00:06:19]} {[%emt 00:00:27]} 80. Ke3 {[%clk 00:20:56]} {[%emt 00:01:03]}
b4 {[%clk 00:06:05]} {[%emt 00:00:45]} 81. Ke2 {[%clk 00:20:43]} {[%emt
00:00:43]} b3 {[%clk 00:03:20]} {[%emt 00:03:15]} 82. Kf3 {[%clk 00:20:21]}
{[%emt 00:00:49]} b2 {[%clk 00:03:36]} {[%emt 00:00:17]} 83. Rxb2 {[%clk
00:20:37]} {[%emt 00:00:14]} Kxb2 {[%clk 00:03:59]} {[%emt 00:00:07]} 84. Kg3
{[%clk 00:21:00]} {[%emt 00:00:06]} h2 {[%emt 00:00:14]} 85. Kf4 {[%clk
00:21:24]} h1=Q {[%clk 00:04:44]} {[%emt 00:00:08]} 0-1

[Event "NJSK 2026 Meisjes B"]
[Site "Helmond, Netherlands"]
[Date "2026.05.01"]
[Round "7.2"]
[White "Jorritsma, Eli Alia"]
[Black "Omnes, Zoe"]
[Result "1-0"]
[TimeControl "90min/40moves + 30min + 30sec/move"]
[WhiteTitle "-"]
[BlackTitle "-"]
[WhiteFideId "1080849"]
[BlackFideId "1095200"]
[WhiteElo "1861"]
[BlackElo "1485"]

1. d4 {[%clk 01:30:58]} {[%emt 00:00:02]} Nf6 {[%clk 01:30:51]} {[%emt
00:00:10]} 2. c4 {[%clk 01:31:19]} {[%emt 00:00:09]} g6 {[%clk 01:31:12]}
{[%emt 00:00:09]} 3. Nc3 {[%clk 01:31:38]} {[%emt 00:00:11]} Bg7 {[%clk
01:31:29]} {[%emt 00:00:13]} 4. Nf3 {[%clk 01:32:01]} {[%emt 00:00:07]} d6
{[%clk 01:31:39]} {[%emt 00:00:20]} 5. e4 {[%clk 01:31:45]} {[%emt 00:00:46]}
O-O {[%clk 01:31:34]} {[%emt 00:00:35]} 6. Be2 {[%clk 01:32:04]} {[%emt
00:00:10]} e5 {[%clk 01:31:16]} {[%emt 00:00:49]} 7. O-O {[%clk 01:29:35]}
{[%emt 00:02:59]} Nc6 {[%clk 01:29:30]} {[%emt 00:02:17]} 8. d5 {[%clk
01:28:04]} {[%emt 00:02:01]} Ne7 {[%clk 01:27:18]} {[%emt 00:02:42]} 9. h3
{[%clk 01:26:51]} {[%emt 00:01:43]} c6 {[%clk 01:25:42]} {[%emt 00:02:06]} 10.
Be3 {[%clk 01:25:11]} {[%emt 00:02:10]} cxd5 {[%clk 01:21:31]} {[%emt
00:04:41]} 11. cxd5 {[%clk 01:25:21]} {[%emt 00:00:19]} a6 {[%clk 01:19:59]}
{[%emt 00:02:03]} 12. a4 {[%clk 01:23:29]} {[%emt 00:02:22]} Bd7 {[%clk
01:12:14]} {[%emt 00:08:14]} 13. a5 {[%clk 01:18:30]} {[%emt 00:05:31]} Nc8
{[%clk 01:11:48]} {[%emt 00:00:55]} 14. Qb3 {[%clk 01:16:29]} {[%emt 00:02:32]}
Rb8 {[%clk 01:08:02]} {[%emt 00:04:15]} 15. Bxa6 {[%clk 01:14:03]} {[%emt
00:02:55]} Qc7 {[%clk 01:06:45]} {[%emt 00:01:46]} 16. Bd3 {[%clk 01:13:01]}
{[%emt 00:01:32]} Re8 {[%clk 01:02:02]} {[%emt 00:05:14]} 17. Rfc1 {[%clk
01:11:43]} {[%emt 00:01:49]} Qd8 {[%clk 00:59:34]} {[%emt 00:02:55]} 18. a6
{[%clk 01:10:00]} {[%emt 00:02:16]} b6 {[%clk 00:58:31]} {[%emt 00:01:33]} 19.
Nd2 {[%clk 01:05:22]} {[%emt 00:05:07]} Ra8 {[%clk 00:55:34]} {[%emt 00:03:27]}
20. Nc4 {[%clk 01:03:42]} {[%emt 00:02:09]} b5 {[%clk 00:55:27]} {[%emt
00:00:38]} 21. Nd2 {[%clk 01:03:54]} {[%emt 00:00:18]} Na7 {[%clk 00:47:07]}
{[%emt 00:08:50]} 22. Qb4 {[%clk 01:00:12]} {[%emt 00:04:10]} Qe7 {[%clk
00:40:35]} {[%emt 00:07:04]} 23. Qa5 {[%clk 00:56:16]} {[%emt 00:04:26]} Rec8
{[%clk 00:35:54]} {[%emt 00:05:11]} 24. Nxb5 {[%clk 00:52:38]} {[%emt
00:04:08]} Rxc1+ {[%clk 00:30:10]} {[%emt 00:06:14]} 25. Rxc1 {[%clk 00:52:07]}
{[%emt 00:01:01]} Nxb5 {[%clk 00:28:13]} {[%emt 00:02:27]} 26. Bxb5 {[%clk
00:52:24]} {[%emt 00:00:13]} Bxb5 {[%clk 00:27:21]} {[%emt 00:01:22]} 27. Qxb5
{[%clk 00:52:46]} {[%emt 00:00:08]} Qd8 {[%clk 00:22:59]} {[%emt 00:04:53]} 28.
a7 {[%clk 00:52:18]} {[%emt 00:00:58]} Nd7 {[%clk 00:16:43]} {[%emt 00:06:46]}
29. Qc6 {[%clk 00:51:14]} {[%emt 00:01:35]} Bf8 {[%clk 00:13:32]} {[%emt
00:03:41]} 30. b4 {[%clk 00:50:50]} {[%emt 00:00:54]} Be7 {[%clk 00:12:01]}
{[%emt 00:02:01]} 31. b5 {[%clk 00:48:52]} {[%emt 00:02:28]} Nc5 {[%clk
00:10:31]} {[%emt 00:01:59]} 32. b6 {[%clk 00:46:16]} {[%emt 00:03:06]} Bf8
{[%clk 00:08:52]} {[%emt 00:02:10]} 33. Qb5 {[%clk 00:45:51]} {[%emt 00:00:53]}
Qc8 {[%clk 00:07:12]} {[%emt 00:02:11]} 34. Bxc5 {[%clk 00:45:05]} {[%emt
00:01:17]} dxc5 {[%clk 00:07:09]} {[%emt 00:00:33]} 35. b7 {[%clk 00:45:12]}
{[%emt 00:00:23]} Qe8 {[%clk 00:06:36]} {[%emt 00:01:02]} 36. Qxe8 {[%clk
00:45:28]} {[%emt 00:00:15]} Rxe8 {[%clk 00:07:02]} {[%emt 00:00:04]} 37. b8=Q
{[%clk 00:45:44]} {[%emt 00:00:14]} Rxb8 {[%clk 00:07:27]} {[%emt 00:00:04]} 38.
axb8=Q {[%clk 00:46:03]} {[%emt 00:00:11]} 1-0

[Event "NJSK 2026 Meisjes B"]
[Site "Helmond, Netherlands"]
[Date "2026.05.01"]
[Round "8.1"]
[White "Jorritsma, Eli Alia"]
[Black "Hardeman, Imara"]
[Result "0-1"]
[TimeControl "90min/40moves + 30min + 30sec/move"]
[WhiteTitle "-"]
[BlackTitle "-"]
[WhiteFideId "1080849"]
[BlackFideId "40100596"]
[WhiteElo "1861"]
[BlackElo "1718"]

1. c4 {[%clk 00:05:05]} {[%emt 00:00:01]} c6 {[%clk 00:05:06]} 2. Nc3 {[%clk
00:05:07]} d5 {[%clk 00:05:08]} 3. cxd5 {[%clk 00:05:09]} cxd5 {[%clk
00:05:11]} 4. d4 {[%clk 00:05:11]} Nf6 {[%clk 00:05:13]} 5. Bg5 {[%clk
00:05:13]} {[%emt 00:00:01]} e6 {[%clk 00:05:13]} {[%emt 00:00:04]} 6. e3
{[%clk 00:05:13]} {[%emt 00:00:02]} Nc6 {[%clk 00:05:15]} {[%emt 00:00:01]} 7.
Bd3 {[%clk 00:05:14]} {[%emt 00:00:02]} Bd7 {[%clk 00:05:17]} {[%emt 00:00:01]}
8. Qc2 {[%clk 00:05:14]} {[%emt 00:00:03]} h6 {[%clk 00:05:17]} {[%emt
00:00:03]} 9. Bh4 {[%clk 00:05:15]} {[%emt 00:00:02]} Be7 {[%clk 00:05:19]} 10.
Nf3 {[%clk 00:05:16]} {[%emt 00:00:02]} a6 {[%clk 00:05:17]} {[%emt 00:00:06]}
11. O-O {[%clk 00:05:14]} {[%emt 00:00:04]} O-O {[%clk 00:05:19]} {[%emt
00:00:02]} 12. Rab1 {[%clk 00:05:14]} {[%emt 00:00:02]} Nb4 {[%clk 00:05:18]}
{[%emt 00:00:04]} 13. Qd1 {[%clk 00:05:13]} {[%emt 00:00:04]} Nxd3 {[%clk
00:05:19]} {[%emt 00:00:02]} 14. Qxd3 {[%clk 00:05:14]} {[%emt 00:00:02]} Rc8
{[%clk 00:05:19]} {[%emt 00:00:04]} 15. Rfc1 {[%clk 00:05:08]} {[%emt
00:00:08]} Ng4 {[%clk 00:05:10]} {[%emt 00:00:13]} 16. Bxe7 {[%clk 00:05:01]}
{[%emt 00:00:09]} Qxe7 {[%clk 00:05:12]} 17. h3 {[%clk 00:05:03]} {[%emt
00:00:02]} Nf6 {[%clk 00:05:14]} 18. Ne5 {[%clk 00:05:01]} {[%emt 00:00:04]}
Bc6 {[%clk 00:05:01]} {[%emt 00:00:15]} 19. Rc2 {[%clk 00:04:47]} {[%emt
00:00:17]} Nd7 {[%clk 00:05:03]} {[%emt 00:00:02]} 20. Nxc6 {[%clk 00:04:47]}
{[%emt 00:00:04]} Rxc6 {[%clk 00:04:59]} {[%emt 00:00:06]} 21. Rbc1 {[%clk
00:04:44]} {[%emt 00:00:06]} Rfc8 {[%clk 00:05:01]} {[%emt 00:00:01]} 22. a3
{[%clk 00:04:10]} {[%emt 00:00:37]} Nb6 {[%clk 00:04:50]} {[%emt 00:00:14]} 23.
Ne2 {[%clk 00:03:21]} {[%emt 00:00:52]} Qd7 {[%clk 00:04:29]} {[%emt 00:00:23]}
24. b3 {[%clk 00:03:05]} {[%emt 00:00:21]} R8c7 {[%clk 00:04:06]} {[%emt
00:00:25]} 25. a4 {[%clk 00:02:53]} {[%emt 00:00:16]} Qc8 {[%clk 00:03:45]}
{[%emt 00:00:23]} 26. Rxc6 {[%clk 00:02:29]} {[%emt 00:00:28]} Rxc6 {[%clk
00:03:47]} 27. Rxc6 {[%clk 00:02:29]} {[%emt 00:00:03]} Qxc6 {[%clk 00:03:50]}
28. Qc3 {[%clk 00:02:23]} {[%emt 00:00:09]} Qxc3 {[%clk 00:03:35]} {[%emt
00:00:17]} 29. Nxc3 {[%clk 00:02:25]} {[%emt 00:00:01]} Kf8 {[%clk 00:03:25]}
{[%emt 00:00:14]} 30. a5 {[%clk 00:02:14]} {[%emt 00:00:14]} Nd7 {[%clk
00:03:22]} {[%emt 00:00:04]} 31. Na4 {[%clk 00:02:13]} {[%emt 00:00:05]} Ke7
{[%clk 00:03:15]} {[%emt 00:00:11]} 32. Kf1 {[%clk 00:02:09]} {[%emt 00:00:07]}
Kd6 {[%clk 00:03:16]} {[%emt 00:00:02]} 33. Ke2 {[%clk 00:01:59]} {[%emt
00:00:12]} Kc6 {[%clk 00:03:17]} {[%emt 00:00:03]} 34. Nc3 {[%clk 00:02:01]}
Kd6 {[%clk 00:03:01]} {[%emt 00:00:19]} 35. f3 {[%clk 00:01:57]} {[%emt
00:00:07]} Nb8 {[%clk 00:02:19]} {[%emt 00:00:45]} 36. b4 {[%clk 00:01:35]}
{[%emt 00:00:25]} Nc6 {[%clk 00:02:09]} {[%emt 00:00:12]} 37. Na2 {[%clk
00:01:37]} {[%emt 00:00:01]} f6 {[%clk 00:01:59]} {[%emt 00:00:14]} 38. Kd3
{[%clk 00:01:33]} {[%emt 00:00:06]} e5 {[%clk 00:01:52]} {[%emt 00:00:12]} 39.
Kc3 {[%clk 00:01:16]} {[%emt 00:00:19]} exd4+ {[%clk 00:01:31]} {[%emt
00:00:23]} 40. exd4 {[%clk 00:01:18]} {[%emt 00:00:01]} Ne7 {[%clk 00:01:25]}
{[%emt 00:00:10]} 41. Nc1 {[%clk 00:01:08]} {[%emt 00:00:13]} Nf5 {[%clk
00:01:18]} {[%emt 00:00:10]} 42. Nd3 {[%clk 00:01:09]} {[%emt 00:00:01]} Ne3
{[%clk 00:01:03]} {[%emt 00:00:18]} 43. g4 {[%clk 00:01:05]} {[%emt 00:00:08]}
f5 {[%clk 00:00:53]} {[%emt 00:00:13]} 44. Nc5 {[%clk 00:00:55]} {[%emt
00:00:13]} Kc6 {[%clk 00:00:34]} {[%emt 00:00:22]} 45. Kd3 {[%clk 00:00:52]}
{[%emt 00:00:06]} f4 {[%clk 00:00:31]} {[%emt 00:00:06]} 46. h4 {[%clk
00:00:43]} {[%emt 00:00:11]} Ng2 {[%clk 00:00:12]} {[%emt 00:00:22]} 47. Ne6
{[%clk 00:00:24]} {[%emt 00:00:23]} Nxh4 {[%clk 00:00:11]} {[%emt 00:00:04]} 48.
Nxf4 {[%clk 00:00:14]} {[%emt 00:00:12]} Nxf3 {[%clk 00:00:11]} {[%emt
00:00:03]} 49. Ne6 {[%clk 00:00:13]} {[%emt 00:00:03]} g6 {[%clk 00:00:10]}
{[%emt 00:00:05]} 50. Nf4 {[%clk 00:00:14]} {[%emt 00:00:02]} g5 {[%clk
00:00:11]} {[%emt 00:00:02]} 51. Nh5 {[%clk 00:00:14]} {[%emt 00:00:03]} Nh2
{[%clk 00:00:11]} {[%emt 00:00:03]} 52. Nf6 {[%clk 00:00:16]} {[%emt 00:00:01]}
Nf3 {[%clk 00:00:12]} {[%emt 00:00:03]} 53. Ke3 {[%clk 00:00:16]} {[%emt
00:00:02]} Ne1 {[%clk 00:00:10]} {[%emt 00:00:05]} 54. Kd2 {[%clk 00:00:15]}
{[%emt 00:00:04]} Nf3+ {[%clk 00:00:11]} {[%emt 00:00:02]} 55. Ke3 {[%clk
00:00:17]} Nh4 {[%clk 00:00:09]} {[%emt 00:00:05]} 56. Ng8 {[%clk 00:00:17]}
{[%emt 00:00:03]} Ng6 {[%clk 00:00:09]} {[%emt 00:00:03]} 57. Nxh6 {[%clk
00:00:18]} {[%emt 00:00:02]} Nf4 {[%clk 00:00:05]} {[%emt 00:00:07]} 58. Nf7
{[%clk 00:00:19]} {[%emt 00:00:02]} Ne6 {[%clk 00:00:08]} {[%emt 00:00:01]} 59.
Kd3 {[%clk 00:00:18]} {[%emt 00:00:04]} Kb5 {[%clk 00:00:09]} {[%emt 00:00:01]}
60. Kc3 {[%clk 00:00:19]} {[%emt 00:00:02]} Ka4 {[%clk 00:00:07]} {[%emt
00:00:06]} 61. Ne5 {[%clk 00:00:21]} Kb5 {[%clk 00:00:06]} {[%emt 00:00:04]} 62.
Nd7 {[%clk 00:00:22]} Kc6 {[%clk 00:00:07]} {[%emt 00:00:02]} 63. Nc5 {[%clk
00:00:23]} {[%emt 00:00:02]} Nxc5 {[%clk 00:00:07]} {[%emt 00:00:03]} 64. bxc5
{[%clk 00:00:23]} {[%emt 00:00:03]} Kb5 {[%clk 00:00:09]} {[%emt 00:00:01]} 65.
Kb3 {[%clk 00:00:24]} {[%emt 00:00:03]} Kxa5 {[%clk 00:00:10]} {[%emt
00:00:02]} 66. Ka3 {[%clk 00:00:26]} {[%emt 00:00:01]} Kb5 {[%clk 00:00:12]} 67.
Kb3 {[%clk 00:00:28]} a5 {[%clk 00:00:14]} 68. Ka3 {[%clk 00:00:30]} Kc4 {[%clk
00:00:13]} {[%emt 00:00:04]} 69. Ka4 {[%clk 00:00:31]} {[%emt 00:00:02]} Kxd4
{[%clk 00:00:15]} {[%emt 00:00:01]} 70. Kxa5 {[%clk 00:00:30]} {[%emt
00:00:04]} Kxc5 {[%clk 00:00:17]} {[%emt 00:00:01]} 0-1

[Event "NJSK 2026 Meisjes B"]
[Site "Helmond, Netherlands"]
[Date "2026.05.01"]
[Round "9.1"]
[White "Hardeman, Imara"]
[Black "Jorritsma, Eli Alia"]
[Result "0-1"]
[TimeControl "90min/40moves + 30min + 30sec/move"]
[WhiteTitle "-"]
[BlackTitle "-"]
[WhiteFideId "40100596"]
[BlackFideId "1080849"]
[WhiteElo "1718"]
[BlackElo "1861"]

1. d4 {[%clk 00:05:06]} f5 {[%clk 00:05:06]} 2. Bf4 {[%clk 00:05:08]} Nf6
{[%clk 00:05:07]} 3. e3 {[%clk 00:05:10]} e6 {[%clk 00:05:10]} 4. Nf3 {[%clk
00:05:12]} {[%emt 00:00:01]} b6 {[%clk 00:05:12]} 5. Be2 {[%clk 00:05:14]} Bb7
{[%clk 00:05:14]} 6. O-O {[%clk 00:05:12]} {[%emt 00:00:05]} Bd6 {[%clk
00:05:16]} {[%emt 00:00:01]} 7. Ne5 {[%clk 00:05:13]} {[%emt 00:00:01]} Nc6
{[%clk 00:05:14]} {[%emt 00:00:06]} 8. Nxc6 {[%clk 00:04:54]} {[%emt 00:00:23]}
Bxc6 {[%clk 00:05:14]} {[%emt 00:00:03]} 9. Bxd6 {[%clk 00:04:55]} {[%emt
00:00:02]} cxd6 {[%clk 00:05:15]} {[%emt 00:00:01]} 10. Bf3 {[%clk 00:04:57]}
d5 {[%clk 00:05:15]} {[%emt 00:00:03]} 11. c3 {[%clk 00:04:55]} {[%emt
00:00:05]} O-O {[%clk 00:05:15]} {[%emt 00:00:03]} 12. Nd2 {[%clk 00:04:57]}
Ne4 {[%clk 00:05:09]} {[%emt 00:00:09]} 13. Be2 {[%clk 00:04:53]} {[%emt
00:00:07]} d6 {[%clk 00:05:06]} {[%emt 00:00:05]} 14. f3 {[%clk 00:04:32]}
{[%emt 00:00:24]} Nxd2 {[%clk 00:04:56]} {[%emt 00:00:14]} 15. Qxd2 {[%clk
00:04:34]} {[%emt 00:00:01]} e5 {[%clk 00:04:58]} {[%emt 00:00:01]} 16. dxe5
{[%clk 00:04:20]} {[%emt 00:00:18]} dxe5 {[%clk 00:04:58]} {[%emt 00:00:02]} 17.
c4 {[%clk 00:04:12]} {[%emt 00:00:12]} d4 {[%clk 00:04:45]} {[%emt 00:00:15]}
18. exd4 {[%clk 00:04:14]} exd4 {[%clk 00:04:46]} {[%emt 00:00:02]} 19. Rad1
{[%clk 00:04:16]} {[%emt 00:00:02]} Qh4 {[%clk 00:04:34]} {[%emt 00:00:14]} 20.
Qxd4 {[%clk 00:03:54]} {[%emt 00:00:25]} f4 {[%clk 00:04:35]} {[%emt 00:00:03]}
21. Qd6 {[%clk 00:03:47]} {[%emt 00:00:10]} Rf6 {[%clk 00:04:27]} {[%emt
00:00:10]} 22. Qe5 {[%clk 00:03:45]} {[%emt 00:00:06]} Rh6 {[%clk 00:04:23]}
{[%emt 00:00:07]} 23. h3 {[%clk 00:03:32]} {[%emt 00:00:17]} Qg3 {[%clk
00:04:17]} {[%emt 00:00:07]} 24. Qf5 {[%clk 00:02:30]} {[%emt 00:01:06]} Rg6
{[%clk 00:03:47]} {[%emt 00:00:33]} 25. Rf2 {[%clk 00:02:23]} {[%emt 00:00:10]}
Re8 {[%clk 00:03:47]} {[%emt 00:00:02]} 26. Qc2 {[%clk 00:02:16]} {[%emt
00:00:11]} Qxh3 {[%clk 00:03:36]} {[%emt 00:00:14]} 27. c5 {[%clk 00:01:20]}
{[%emt 00:01:00]} Qg3 {[%clk 00:03:23]} {[%emt 00:00:16]} 28. Bc4+ {[%clk
00:00:37]} {[%emt 00:00:46]} Kh8 {[%clk 00:03:23]} {[%emt 00:00:02]} 29. Bd5
{[%clk 00:00:07]} {[%emt 00:00:33]} Bxd5 {[%clk 00:03:00]} {[%emt 00:00:27]} 30.
Re2 {[%emt 00:00:06]} 0-1